Workbook

Sheet KORTTI
B1: Tiina Risku | E1: 7.1.1979
B2: SUPERPESIS | E2: Runkosarja | I2: Kärkilyönnit (KL), pesänvälit | P2: Ylempi loppusarja | U2: Alempi loppusarja | Z2: Arvo-ottelut ja mitalit | AF2: Runkosarjan jälkeen
B3: Vuosi | C3: Sija | D3: Seura | E3: OTT | F3: KUN | G3: LÖI | H3: TOI | I3: KL | J3: 0 > 1 | K3: 1 > 2 | L3: 2 > 3 | M3: 3 > k | N3: KL-% | P3: OTT | Q3: KUN | R3: LÖI | S3: TOI | T3: KL | U3: OTT | V3: KUN | W3: LÖI | X3: TOI | Y3: KL | Z3: IL | AA3: LL | AB3: Halli | AC3: K | AD3: H | AE3: P
B4: 1996 | D4: PeTo | F4: ykköspesis | O4: 0
B5: 1997 | D5: PeTo | F5: ykköspesis | O5: 0 | AF5: superpesiskarsinta
B6: 1998 | C6: 10. | D6: PeTo | E6: 22 | F6: 1 | G6: 8 | H6: 7 | I6: 60 | J6: 27 | K6: 9 | L6: 15 | M6: =PRODUCT(F6+G6) -> 9 | N6: 42.3 % | O6: =PRODUCT(I6/N6) -> 141.8439716 | AF6: superpesiskarsinta
B7: 1999 | C7: 8. | D7: PeTo | E7: 22 | F7: 4 | G7: 5 | H7: 13 | I7: 55 | J7: 16 | K7: 15 | L7: 15 | M7: 9 | N7: 41.2 % | O7: 133.4951456 | P7: 3 | Q7: 0 | R7: 1 | S7: 0 | T7: 11 | AF7: play off
B8: 2000 | C8: 3. | D8: PeTo | E8: 22 | F8: 3 | G8: 13 | H8: 9 | I8: 64 | J8: 19 | K8: 10 | L8: 19 | M8: 16 | N8: 46.0 % | O8: 139.1304348 | P8: 11 | Q8: 1 | R8: 3 | S8: 3 | T8: 28 | AE8: 1 | AF8: play off
B9: 2001 | C9: 5. | D9: PeTo | E9: 24 | F9: 1 | G9: 14 | H9: 10 | I9: 65 | J9: 20 | K9: 8 | L9: 22 | M9: 15 | N9: 51.2 % | O9: 126.953125 | P9: 3 | Q9: 0 | R9: 1 | S9: 0 | T9: 6 | AF9: play off
B10: 2002 | C10: 7. | D10: PeTo | E10: 24 | F10: 4 | G10: 20 | H10: 19 | I10: 90 | J10: 15 | K10: 21 | L10: 30 | M10: 24 | N10: 53.9 % | O10: 166.9758813 | P10: 3 | Q10: 1 | R10: 7 | S10: 1 | T10: 12 | AF10: play off
B11: 2003 | C11: 3. | D11: PeTo | E11: 20 | F11: 6 | G11: 21 | H11: 15 | I11: 77 | J11: 11 | K11: 15 | L11: 24 | M11: 27 | N11: 53.5 % | O11: 143.9252336 | P11: 12 | Q11: 1 | R11: 7 | S11: 3 | T11: 37 | AE11: 1 | AF11: play off
B12: 2004 | C12: 6. | D12: PeTo | E12: 20 | F12: 1 | G12: 12 | H12: 4 | I12: 53 | J12: 13 | K12: 10 | L12: 17 | M12: 13 | N12: 46.1 % | O12: 114.967462 | P12: 7 | Q12: 0 | R12: 3 | S12: 2 | T12: 16 | AF12: jatkosarja
B13: 2005 | C13: 10. | D13: PeTo-Jussit | E13: 20 | F13: 1 | G13: 5 | H13: 4 | I13: 51 | J13: 15 | K13: 13 | L13: 17 | M13: 6 | N13: 38.6 % | O13: 132.1243523 | U13: 6 | V13: 1 | W13: 6 | X13: 5 | Y13: 27 | AF13: karsintasarja
B14: Yhteensä | E14: =SUM(E6:E13) -> 174 | F14: 21 | G14: 98 | H14: 81 | I14: 515 | J14: 136 | K14: 101 | L14: 159 | M14: 119 | N14: =PRODUCT(I14/O14) -> 46.8 % | O14: =SUM(O6:O13) -> 1099.415606 | P14: 39 | Q14: 3 | R14: 22 | S14: 9 | T14: 110 | U14: 6 | V14: 1 | W14: 6 | X14: 5 | Y14: 27 | Z14: 0 | AA14: 0 | AB14: 0 | AC14: 0 | AD14: 0 | AE14: 2
B15: Pesispörssi | D15: =SUM(F14:H14)+((I14-F14-G14)/3)+(E14/3)+(Z14*25)+(AA14*25)+(AB14*10)+(AC14*25)+(AD14*20)+(AE14*15) -> 420.0
B17: URA SUPERISSA | E17: OTT | F17: KUN | G17: LÖI | H17: TOI | I17: KL | K17: ka/L | L17: ka/T | M17: ka/KL | N17: K - % | P17: ENSIMMÄISET
B18: Runkosarja | E18: =PRODUCT(E14) -> 174 | F18: =PRODUCT(F14) -> 21 | G18: =PRODUCT(G14) -> 98 | H18: =PRODUCT(H14) -> 81 | I18: =PRODUCT(I14) -> 515 | K18: =PRODUCT((F18+G18)/E18) -> 0.68 | L18: =PRODUCT(H18/E18) -> 0.47 | M18: =PRODUCT(I18/E18) -> 2.96 | N18: =PRODUCT(N14) -> 46.8 % | O18: =PRODUCT(O14) -> 1099.415606 | P18: Ottelu
B19: Ylempi loppusarja | E19: =PRODUCT(P14) -> 39 | F19: =PRODUCT(Q14) -> 3 | G19: =PRODUCT(R14) -> 22 | H19: =PRODUCT(S14) -> 9 | I19: =PRODUCT(T14) -> 110 | K19: =PRODUCT((F19+G19)/E19) -> 0.64 | L19: =PRODUCT(H19/E19) -> 0.23 | M19: =PRODUCT(I19/E19) -> 2.82 | N19: =PRODUCT(I19/O19) -> 48.5 % | O19: 227 | P19: Lyöty juoksu
B20: Alempi loppusarja | E20: =PRODUCT(U14) -> 6 | F20: =PRODUCT(V14) -> 1 | G20: =PRODUCT(W14) -> 6 | H20: =PRODUCT(X14) -> 5 | I20: =PRODUCT(Y14) -> 27 | K20: =PRODUCT((F20+G20)/E20) -> 1.17 | L20: =PRODUCT(H20/E20) -> 0.83 | M20: =PRODUCT(I20/E20) -> 4.50 | N20: =PRODUCT(I20/O20) -> 65.9 % | O20: 41 | P20: Tuotu juoksu
B21: KAIKKI | E21: =SUM(E18:E20) -> 219 | F21: =SUM(F18:F20) -> 25 | G21: =SUM(G18:G20) -> 126 | H21: =SUM(H18:H20) -> 95 | I21: =SUM(I18:I20) -> 652 | K21: =PRODUCT((F21+G21)/E21) -> 0.69 | L21: =PRODUCT(H21/E21) -> 0.43 | M21: =PRODUCT(I21/E21) -> 2.98 | N21: 47.7 % | O21: =SUM(O18:O20) -> 1367.415606 | P21: Kunnari
B23: Seurat | D23: PeTo = Peräseinäjoen Toive (1927)
D24: PeTo-Jussit = PeTo-Jussit, Seinäjoki (2004)
